Cogmind - Beta 17 @@@ ROGUE MODE // 2026.07.15 @ 17:39:52 Player: Suffixing Result: Destroyed by U6-ZKO(j) with Overtuned Pulse Rifle Performance ------------- Evolutions (0) 0 Regions Visited (3) 600 Robots Destroyed (22) 110 Value Destroyed (708) 708 Prototype IDs (9) 180 Alien Tech Used (0) 0 Bonus (785) 785 TOTAL SCORE: 2383 Bonus ------- Registered with UFD 300 Met Optimus in HQ 500 Friendly Fire -15 Cogmind --------- Core Integrity 0/250 Matter 135/300 Energy 294/300 System Corruption 0% Temperature Warm (138) Movement Treading (312) Ox2 Location -7/Scraptown Parts ------- > --- POWER (1) -------- Angular Momentum Engine > --- PROPULSION (2) --- Advanced Treads Medium Treads > --- UTILITY (2) ------ Huge Storage Unit Hardened Light Armor Plating > --- WEAPON (2) ------- Compact Gauss Rifle Helical Railgun > --- INVENTORY (25) --- Improved Deuterium Engine Light Angular Momentum Engine Overtuned Treads Overtuned Medium Treads Overtuned Huge Scrapsphere Scrap Suit Heat Sink Improved Heat Sink Improved Heat Sink Large Storage Unit Experimental Sensor Array Hardened Light Armor Plating Hardened Light Armor Plating Overtuned Barrage Gun Overtuned Barrage Gun Heavy Battle Rifle Overtuned Coil Gun Advanced Assault Cannon CPS Tube (2) CPS Tube (2) CPS Tube (2) Makeshift Axe Peak State ------------ > --- POWER ------------ Angular Momentum Engine > --- PROPULSION ------- Advanced Treads Medium Treads > --- UTILITY ---------- Huge Storage Unit Hardened Light Armor Plating > --- WEAPON ----------- Compact Gauss Rifle Helical Railgun > --- INVENTORY -------- Improved Deuterium Engine Light Angular Momentum Engine Overtuned Treads Overtuned Medium Treads Overtuned Huge Scrapsphere Scrap Suit Heat Sink Improved Heat Sink Improved Heat Sink Large Storage Unit Experimental Sensor Array Hardened Light Armor Plating Hardened Light Armor Plating Overtuned Barrage Gun Overtuned Barrage Gun Heavy Battle Rifle Overtuned Coil Gun Advanced Assault Cannon CPS Tube CPS Tube CPS Tube Makeshift Axe [Rating: 39] Favorites ----------- Power Angular Momentum Engine Engine Angular Momentum Engine Power Core Light Nuclear Core Propulsion Light Treads Treads Light Treads Leg Aluminum Leg Wheel Compact Wheel Utility Huge Storage Unit Device Heat Sink Storage Huge Storage Unit Protection Hardened Light Armor Plating Weapon Autogun Energy Gun Medium Laser Ballistic Gun Autogun Ballistic Cannon Advanced Assault Cannon Launcher Shock Bomb Launcher Slashing Weapon Makeshift Axe Build | -11 -10 -10 -7 ------- Run | Yrd Mat Sub Scr Slots Evolved . | . . . . Power . | . . . . Propulsion . | . . . . Utility . | . . . . Weapon . | . . . . Parts Attached 22 | 2 7 2 11 Power 4 | . 1 2 1 Engine 3 | . 1 1 1 Core 1 | . . 1 . Reactor . | . . . . Propulsion 6 | 2 . . 4 Treads 5 | 2 . . 3 Leg . | . . . . Wheel 1 | . . . 1 Hover . | . . . . Flight . | . . . . Utility 5 | . 4 . 1 Device 1 | . 1 . . Storage 2 | . 2 . . Processor . | . . . . Hackware . | . . . . Protection 2 | . 1 . 1 Artifact . | . . . . Weapon 7 | . 2 . 5 Energy Gun . | . . . . Energy Cannon . | . . . . Ballistic Gun 4 | . 2 . 2 Ballistic Cannon 1 | . . . 1 Launcher 1 | . . . 1 Special Weapon . | . . . . Impact Weapon . | . . . . Slashing Weapon 1 | . . . 1 Piercing Weapon . | . . . . Special Melee Weapon . | . . . . Unidentified Prototypes 1 | . . . 1 Parts Lost 5 | . 1 3 1 Power 3 | . 1 2 . Propulsion 1 | . . 1 . Utility . | . . . . Weapon 1 | . . . 1 Highest Loss Streak 2 | . 1 2 1 To Critical Strikes . | . . . . Average Backups 15 | 5 7 13 18 Power 1 | 1 . 2 1 Propulsion 2 | 4 1 1 3 Utility 6 | . 3 6 7 Weapon 4 | . 2 4 5 Tool/Special . | . . . . Unused Backups 29 | . 1 . 28 Power 4 | . . . 4 Propulsion 4 | . . . 4 Utility 10 | . 1 . 9 Weapon 8 | . . . 8 Tool/Special 3 | . . . 3 Average Slot Usage (%) 96 | . 96 97 96 Engine 13 | . 13 10 14 Treads 26 | . 27 26 25 Storage 14 | . 14 14 14 Protection 12 | . 8 14 14 Energy Gun 2 | . 9 . . Ballistic Gun 15 | . 18 28 13 Ballistic Cannon 4 | . . . 6 Launcher 3 | . . . 5 Peak Build Rating 39 | 6 11 14 39 Average Rating 19 | 6 9 11 23 On Entrance 8 | 6 6 11 11 Avg Prop Armor Cover (%) . | . . . . Naked Turns . | . . . . Heaviest Build 110 | 12 94 96 110 Greatest Support 51 | 40 40 40 51 Greatest Overweight (x) 5 | . 2 4 5 Average Overweight (x) 2 | . 1 2 2 Largest Inventory Capacity 25 | 8 25 25 25 Average Capacity 24 | 8 24 25 25 Most Carried 25 | 5 12 17 25 Average Carried 17 | 3 7 13 20 Final Capacity 25 | 8 25 25 25 Final Carried 24 | 2 12 17 24 Class Distribution -------------------- 75% | Mutant 24% | Derelict-Mutant Dominant Class ---------------- Mutant | -10/Materials Mutant | -10/Subcaves Mutant | -7/Scraptown Resources | -11 -10 -10 -7 ----------- Run | Yrd Mat Sub Scr Matter Collected 867 | 219 283 182 183 Remotely . | . . . . Salvage Created 1012 | . 671 171 170 Parts 38 | . 26 4 8 Haulers Intercepted 2 | . 2 . . Recyclers Shooed . | . . . . Parts Field Recycled . | . . . . Retrieved Matter . | . . . . Parts Self-Destructed 6 | . . 6 . Prevented . | . . . . Parts Restored . | . . . . Kills | -11 -10 -10 -7 ------- Run | Yrd Mat Sub Scr Combat Hostiles Destroyed 17 | . 11 3 3 Guns 15 | . 11 3 1 AOE 2 | . . . 2 Classes Destroyed 8 | . 5 1 2 Builder 1 | . 1 . . Hauler 2 | . 2 . . Recycler 1 | . 1 . . Watcher 1 | . 1 . . Grunt 11 | . 11 . . Subdweller 3 | . . 3 . Federalist 1 | . . . 1 Scrapper 1 | . . . 1 Thug 1 | . . . 1 Best Kill Streak 3 | . 3 1 2 Combat Bots Only 2 | . 2 1 2 Max Kills in Single Turn 1 | . 1 1 1 Gunslinging . | . . . . Exploded 1 | . . . 1 Melee . | . . . . Uniques/NPCs Destroyed . | . . . . Combat | -11 -10 -10 -7 -------- Run | Yrd Mat Sub Scr Hostile Shots Fired 121 | . 52 35 34 Missed 34 | . 14 9 11 Hits 87 | . 38 26 23 Projectile 87 | . 38 26 23 AOE 2 | . . 2 . Critical Strikes 6 | . 3 1 2 Damage Taken 1585 | . 471 699 415 Core 263 | . 57 135 71 Absorbed by Shields . | . . . . Regen/Repaired (Parts) 115 | . 115 . . Core Remaining (%) 100 | 100 . . . Volleys Fired 100 | . 52 20 28 Largest 2 | . 2 2 2 Hottest 100 | . 100 46 68 Shots Fired 176 | . 104 42 30 Gun 170 | . 104 42 24 Cannon . | . . . . Launcher 6 | . . . 6 Special . | . . . . Kinetic 108 | . 42 42 24 Thermal 62 | . 62 . . Explosive . | . . . . Electromagnetic 6 | . . . 6 Robot Hit Streak 10 | . 10 6 4 Robot Miss Streak 6 | . 3 2 6 Penetration Max . | . . . . Secondary Targets 1 | . 1 . . Max Gunslinging Chain 1 | . 1 . . Shots Hit Robots 118 | . 75 31 12 Core Hits 44 | . 31 5 8 Critical Kills . | . . . . Critical Parts Destroyed 1 | . 1 . . Critical Strikes 5 | . 5 . . Burn 4 | . 4 . . Destroy 1 | . 1 . . Melee Attacks 1 | . . . 1 Impact . | . . . . Slashing 1 | . . . 1 Piercing . | . . . . Sneak Attacks . | . . . . Combat Hostiles . | . . . . Follow-up Attacks . | . . . . Damage Inflicted 1978 | . 1038 447 493 Guns 1712 | . 1008 447 257 Cannons . | . . . . Explosions 236 | . . . 236 Melee . | . . . . Ramming 30 | . 30 . . Kinetic 1139 | . 435 447 257 Thermal 573 | . 573 . . Explosive . | . . . . Electromagnetic 236 | . . . 236 Impact . | . . . . Slashing . | . . . . Piercing . | . . . . Highest Corruption 8 | . 8 8 . Average Corruption 5 | . 5 8 . Corruption Purged . | . . . . Corruption Blocked . | . . . . Effects 56 | . 39 17 . Message Errors 14 | . 9 5 . Matter Fused 15 | . 9 6 . Heat Flow Errors 7 | . 6 1 . Energy Discharges 9 | . 8 1 . Parts Fused 1 | . 1 . . Data Loss (minor) 8 | . 6 2 . Misfires 2 | . . 2 . Overload Shots . | . . . . Overflow Damage . | . . . . Projectiles . | . . . . Explosions . | . . . . Melee . | . . . . Knockbacks 1 | . 1 . . Impact 1 | . 1 . . Kinetic . | . . . . Secondary . | . . . . Self-Inflicted Damage . | . . . . Shots . | . . . . Rammed 5 | . 5 . . Targets Rammed 7 | . 7 . . Kicked . | . . . . Crushed 2 | . 2 . . Highest Temperature 372 | . 293 109 372 Average Temperature 111 | . 80 39 206 Received Heat Transfer 752 | . 315 180 257 Effects 5 | . 2 . 3 Energy Bleed 2 | . . . 2 Interference 3 | . 2 . 1 Siege Activations . | . . . . Martial Activations . | . . . . Shielding Activations . | . . . . Robots Disrupted . | . . . . Combat Hostiles . | . . . . Robots Corrupted . | . . . . Combat Hostiles . | . . . . Parts Fried 1 | . . . 1 Impact Corruptions . | . . . . Robots Melted 1 | . 1 . . Combat Hostiles . | . . . . Parts Melted 6 | . 5 . 1 Heat Transferred 1998 | . 1998 . . Parts Sabotaged . | . . . . Parts Stolen . | . . . . Parts Stripped . | . . . . Power Chain Reactions 2 | . . . 2 Alert | -11 -10 -10 -7 ------- Run | Yrd Mat Sub Scr Maximum Alert Level . | . . . . Low Security (%) 100 | 100 100 . . Level 1 . | . . . . Level 2 . | . . . . Level 3 . | . . . . Level 4 . | . . . . Level 5 . | . . . . High Security . | . . . . Max Security . | . . . . Peak Influence 77 | . 77 . . Initial . | . . . . Average 15 | . 15 . . Influence Increases 316 | . 316 . . Destroy 0b10 Robot/C 220 | . 220 . . Destroy 0b10 Robot/NC 25 | . 25 . . Destroy Leader 56 | . 56 . . Lose Combat Pursuer 15 | . 15 . . Influence Decreases 316 | . 266 50 . Entered New Map 25 | . . 25 . Time Decay 281 | . 256 25 . Lost Part 10 | . 10 . . Squads Dispatched 2 | . 2 . . Investigation . | . . . . Extermination . | . . . . Reinforcement 2 | . 2 . . Assault . | . . . . Garrison . | . . . . Intercept . | . . . . Searches Triggered . | . . . . Construction Impeded . | . . . . Haulers Reinforced . | . . . . Active Scanning Responses . | . . . . Cargo Convoy Interrupts . | . . . . Stealth | -11 -10 -10 -7 --------- Run | Yrd Mat Sub Scr Distress Signals 2 | . 2 . . Communications Jammed . | . . . . Distress Signals . | . . . . Times Spotted 49 | . 24 9 16 Peak Tracking Total 4 | . 4 2 4 Tactical Retreats 1 | . 1 . . Traps | -11 -10 -10 -7 ------- Run | Yrd Mat Sub Scr Traps Triggered 5 | . 5 . . Indirectly . | . . . . Trap Hack Attempts . | . . . . Triggered . | . . . . Disarmed . | . . . . Reprogrammed . | . . . . Reused . | . . . . Traps Extracted . | . . . . Installed . | . . . . Triggered . | . . . . Machines | -11 -10 -10 -7 ---------- Run | Yrd Mat Sub Scr Machines Disabled 2 | . . . 2 Max in Single Turn 1 | . . . 1 Machines Repaired . | . . . . Machines Dismantled . | . . . . Machines Sabotaged . | . . . . Overloaded Fab Kills . | . . . . Hacking | -11 -10 -10 -7 --------- Run | Yrd Mat Sub Scr Machines Accessed 4 | . 3 . 1 Terminals 1 | . 1 . . Fabricators . | . . . . Repair Stations 1 | . 1 . . Recycling Units 1 | . 1 . . Scanalyzers . | . . . . Garrison Access . | . . . . Total Hacks 10 | . 7 . 3 Successful 5 | . 2 . 3 Failed 5 | . 5 . . Catastrophic 2 | . 2 . . Database Lockouts . | . . . . Manual . | . . . . Terminals 2 | . 2 . . Fabricators . | . . . . Repair Stations 2 | . 2 . . Recycling Units 3 | . 3 . . Scanalyzers . | . . . . Garrison Access . | . . . . Terminal Hacks 3 | . . . 3 Record 3 | . . . 3 Fabricator Hacks . | . . . . Repair Station Hacks 2 | . 2 . . Scan Component 1 | . 1 . . Repair 1 | . 1 . . Recycling Unit Hacks . | . . . . Scanalyzer . | . . . . Garrison Access Hacks . | . . . . Unauthorized Hacks . | . . . . Terminals . | . . . . Fabricators . | . . . . Repair Stations . | . . . . Recycling Units . | . . . . Scanalyzers . | . . . . Garrison Access . | . . . . Data Cores Recovered . | . . . . Used . | . . . . Hacking Detections 2 | . 2 . . Full Trace Events . | . . . . Feedback Events . | . . . . Feedback Blocked . | . . . . Robot Schematics Acquired . | . . . . Robots Built . | . . . . Authchips . | . . . . Time . | . . . . Total Robot Build Rating . | . . . . Part Schematics Acquired . | . . . . Parts Built . | . . . . Authchips . | . . . . Time . | . . . . Total Part Build Rating . | . . . . Part Studies Acquired . | . . . . Parts Repaired 1 | . 1 . . Time 26 | . 26 . . Parts Recycled . | . . . . Recycled Matter . | . . . . Retrieved Matter . | . . . . Retrieved Components . | . . . . Parts Scanalyzed . | . . . . Part Schematics Acquired . | . . . . Parts Damaged . | . . . . Bothacking | -11 -10 -10 -7 ------------ Run | Yrd Mat Sub Scr Used RIF Installer . | . . . . Robots Hacked . | . . . . Non-combat . | . . . . Combat . | . . . . Robot Hacks Applied . | . . . . Relay Couplers Released . | . . . . Fabnet Peak Effective % . | . . . . Robots Rewired . | . . . . Allies Hacked . | . . . . Hacks Repelled . | . . . . Allies | -11 -10 -10 -7 -------- Run | Yrd Mat Sub Scr Total Allies . | . . . . Largest Group . | . . . . Highest-Rated Group . | . . . . Highest-Rated Ally . | . . . . Total Orders . | . . . . Ally Attacks . | . . . . Total Damage . | . . . . Kills . | . . . . Allies Corrupted . | . . . . Allies Melted 1 | . . . 1 Intel | -11 -10 -10 -7 ------- Run | Yrd Mat Sub Scr Active Infowar (turns) . | . . . . Robot Analysis Total . | . . . . Derelict Logs Recovered 3 | . . . 3 Drone Launches . | . . . . Drone Recoveries . | . . . . Exploration | -11 -10 -10 -7 ------------- Run | Yrd Mat Sub Scr Turns Passed 8759 | 9 1945 491 6314 Spaces Moved 2765 | 3 537 126 2099 Core . | . . . . Treads 2457 | 3 537 126 1791 Legs . | . . . . Wheels 308 | . . . 308 Hover . | . . . . Flight . | . . . . Fastest Speed 160 | 160 160 320 175 Average Speed 290 | 160 310 333 282 Slowest Speed 480 | 160 320 480 480 Overloaded Moves . | . . . . Propulsion Burnouts . | . . . . Robots Hopped . | . . . . Potential Cave-ins . | . . . . Cave-ins Triggered . | . . . . Exploration Rate (%) 37 | 2 56 11 80 Regions Visited 3 Branch Regions 2 Pre-discovered Areas . | . . . . Known Exits Taken . | . . . . Unknown Exits Taken 3 | 1 1 1 . Scrap Searched 4 | . . . 4 Spaces Dug . | . . . . Terrain Destroyed 8 | . . . 8 Melee . | . . . . Projectile 8 | . . . 8 AOE . | . . . . Terrain Rammed . | . . . . Walls Destroyed . | . . . . Machines Disabled . | . . . . Actions | -11 -10 -10 -7 --------- Run | Yrd Mat Sub Scr Total 3340 | 8 704 168 2460 Wait 364 | . 86 15 263 Move 2762 | 2 536 125 2099 Hop . | . . . . Pick Up 50 | . 14 6 30 Fast Attach 1 | . . . 1 Attach 10 | . 3 2 5 Detach 2 | . . . 2 Swap 17 | 2 5 . 10 Drop 26 | 4 1 . 21 Fire 100 | . 52 20 28 Melee 1 | . . . 1 Ram . | . . . . Kick . | . . . . Crush 7 | . 7 . . Escape Stasis . | . . . . Rewire . | . . . . Trap . | . . . . Miscellaneous . | . . . . Route ------- -11/Scrapyard -10/Materials (discovered 2 exits: [*Mat] / [*Sub]) -10/Subcaves (discovered 2 exits: *Scr x2) -7/Scraptown (discovered 2 exits: *Fac x2) History --------- Turn | Location | Event 7 | -11/Scrapyard | Discovered new exit (range 3) 10 | -11/Scrapyard | Entered Materials 11 | -10/Materials | Met a group of wandering Federalists 315 | -10/Materials | Build established: Mutant 922 | -10/Materials | Discovered new exit (range 10) 1573 | -10/Materials | Repaired Lgt. Treads 1774 | -10/Materials | Discovered new exit (range 3) 1955 | -10/Materials | Entered Subcaves 1956 | -10/Subcaves | Shifting Twisted Machinery released Sub. Beam Cannon 1956 | -10/Subcaves | Continued accompanying wandering Federalists (5) 1956 | -10/Subcaves | Approached by a straggling Scientist 1957 | -10/Subcaves | Shifting Twisted Machinery released Sub. Monowheel 2124 | -10/Subcaves | Core integrity fell below 50% 2220 | -10/Subcaves | Scientist uncovered a shortcut to Scraptown 2273 | -10/Subcaves | Ambushed by Subdwellers from Twisted Machinery 2446 | -10/Subcaves | Entered Scraptown 2446 | -7/Scraptown | System corruption cleaned by C-Scrubber 2512 | -7/Scraptown | Visited SPCMW 2567 | -7/Scraptown | Visited Red Mages 2577 | -7/Scraptown | Heard Great Nut preacher, LISTEN AND RECITE! 2647 | -7/Scraptown | Visited Fellowship of the Rings 2701 | -7/Scraptown | Visited TADAMA 2759 | -7/Scraptown | Visited Shadow of the Wyrm 2794 | -7/Scraptown | Visited Cave Peace 3472 | -7/Scraptown | Scanned Subdweller tech in exchange for log data 3478 | -7/Scraptown | Learned Factory garrison access intel 3482 | -7/Scraptown | Learned location of 1 exit from Research 3485 | -7/Scraptown | Learned Factory emergency access door positions 3845 | -7/Scraptown | Visited UFD Registry 3845 | -7/Scraptown | Registered with UFD as "Toolkit" 3995 | -7/Scraptown | Discovered new exit (range 11) 4261 | -7/Scraptown | Guru changed UFD alias to "Micromod" 4548 | -7/Scraptown | Visited Modified Component R&D 4693 | -7/Scraptown | Visited DA-N13 Charitable Foundation 4714 | -7/Scraptown | Found DCF Scrap (30 items) 4781 | -7/Scraptown | Visited Junk Repository 4859 | -7/Scraptown | Found Scrap Suit 4863 | -7/Scraptown | Found Scrap Suit 4960 | -7/Scraptown | Visited Curators Association 5029 | -7/Scraptown | Visited Junk Repository 5358 | -7/Scraptown | Visited Scrapoid Research Area 5402 | -7/Scraptown | Visited Abandonware Association 5443 | -7/Scraptown | Learned abandonware demo "OVRCLOCK.EXE" 5452 | -7/Scraptown | Learned abandonware demo "MELTYB.EXE" 5611 | -7/Scraptown | Visited Infowarlord's Domain 5631 | -7/Scraptown | Found Exp. Sensor Array 6094 | -7/Scraptown | Visited Assassins FH 6580 | -7/Scraptown | Build established: Derelict-Mutant 7417 | -7/Scraptown | Delivered Scrap Shield to a Scientist 8034 | -7/Scraptown | Met Optimus 8034 | -7/Scraptown | Accepted into 0bPrime 8434 | -7/Scraptown | Civil war broke out across Scraptown 8499 | -7/Scraptown | Lost 7 allies 8546 | -7/Scraptown | Identified exit to Factory 8589 | -7/Scraptown | Optimus destroyed in the chaos of civil war 8696 | -7/Scraptown | Core integrity fell below 20% 8705 | -7/Scraptown | Lost 14 allies 8757 | -7/Scraptown | Build established: Mutant 8760 | -7/Scraptown | Destroyed by U6-ZKO(j) with Overtuned Pulse Rifle Last Messages --------------- 08720_ Bolt penetrates HK-6BZ(j). 08722_ Bolt penetrates Reinforced Barrier. 08722_ Bolt penetrates HK-6BZ(j). 08723_ Slug penetrates HK-6BZ(j). 08727_ HK-6BZ(j) destroyed. 08733_ Overheating: Energy bleed (-66). 08733_ Acquired Corrupted Unknown Ballistic Gun. 08737_ ZH-X2B(j) destroyed. 08737_ Slug penetrates 8C-GUB(p). 08737_ Slug penetrates Reinforced Barrier. 08737_ Bolt penetrates Reinforced Barrier. 08740_ Slug penetrates Reinforced Barrier. 08740_ Slug penetrates 3T-OWK(j). 08740_ Bolt penetrates 3T-OWK(j). 08741_ 8C-GUB(p) switches sides: "Sorry everyone but I think they're right!" 08743_ 8C-GUB(p) destroyed. 08743_ Bolt penetrates 3T-OWK(j). 08748_ 3T-OWK(j) destroyed. 08755_ Acquired Imp. Heat Sink. Map ----- +----------------------------------------------------+ | ######## ####???????###"%%/"########"%########### | | #???????#" !!%! "= /!![="""" "" | | #???????#" [*= =%%=%=!%[! | | #???????#" ! !=%!!*!* | | #???????#" !!% ! | | #???????#" /%! !=![ | | ### #???#####" = ==% | | ??# #???#"""" """""""""""""""""" "" | | ??# #???#"""" """"""""""""""""" """" | | ??# #???#"""" ""###### ############# | | ??# #???#"""" "# ##?????? | | ??# #???#"""" ""# X"#?????? | | ??# ###?#""" "# "" "" ##?????? | | ??# ""#"#"" ""# "" "" X"#?????? | | ??# """"#"" %= ""# " " ######## | | ??# ! ""#######"=*[ "" "" | | ??# ==%= ###?????#%%%*! "" "" | | ??# %!!%!#########=%!!!*""# " " ######## | | ??# !=!!%%!!%=[ %[[=!%=!""# "" "" ""#?????? | | ??# [=![[%=%%=!%=!!! =""# "" "" ##?????? | | ??# !%[[=!%/=/*!*%!!=! ""# X"#?????? | | ??# =%!!=[=!![=%[!* ! ""# ##?????? | | ### % !!=!!=!%=!= [! ""###### ############# | | =%=!!![=%!*! != *""""""""""""""""""""""" | | ! !==[%!!!*=%[ %*%=""""""""""""""""""""""" | | [%= ! [=!![!=!!% !@%[ | | *= =%[%=!*!! [[ *!=[*!= | | /*==*!!%!![ !!!*!!![!= j!! | | =%%#""""#! %*%!=!!%[[%[*! | | ! !*#????#" !% !!!%!=%*[!% | | % #????#""""""=" "%"[""""" """""""""" | | ######### ####????#######[#;######### ########## | | #?# #???????????? %![[???# #????" | | #?# #??????????# %!% ??# #?? | | #?# #??????????# " ![* "## """"" ## | | #?# #??????????#""" / ""## "###" ##"""" | | """" #?# #??????????#""" ## "#X#" ###### | | """" #?# #??????????#"""%* " ## "# #" #????? | | """" #?# #??????????? " ""## #????? | | #?# #???????????? """## " " " #????? | | ????#?? ?????????????? """?#"""""""""#????? | | ?????????????????????????? " ???###########????? | | ??????????????????????????""" ??????????????????? | | ??????????????????????????######?????????????????? | | ???????????????????#######??###################### | | ??????????????????? ?#"""##"""##"""##"""##" | | ?????????????????????""""" ## ""##|""##" "##"""##" | | ?????????????????????""""" | | ?????????????????????""""" | | ?????????????????????""""" | +----------------------------------------------------+ Best States ------------- Heat Dissipation 35 Energy Generation 18 Energy Capacity 300 Matter Stores 300 Matter Capacity 300 Sight Range 16 Terrain Scan Density 10 Armor Coverage 150 Evasion (%) 40 Recoil Reduction 2 Item Schematics ----------------- None Robot Schematics ------------------ None Fabricated ------------ Nothing Repaired ---------- Lgt. Treads | 17% | -10/Materials Studied --------- None Alien Tech Used ----------------- None Achievements -------------- Longdome?! Challenges ------------ None Game ------ Seed PrecisionSmartbombInterface Manual? 0 Play Time 00:30:47 Cumulative 49.2 hours Start 2026.07.15 @ 17:09:29 End 2026.07.15 @ 17:39:52 Sessions 1 Manual Loads 0 Difficulty Rogue Special Mode None Game No. 214 Rogue 169 Adventurer 45 Explorer 0 Win Type - Total 1 Types 1/0/0/0/0/0/0/0/0/0 Lore% 59 Gallery% 40 Achievement% 32 Wizard Run 0 Options --------- Layout 1 ASCII 0 Keyboard 0 Movement Numpad Keybinds 0 Fullscreen 1 Font 24/Smallcaps Map View 50x35 Zoom Use 0% Tactical HUD 1 Map Filters NONE Filters NONE Steam 1 RUN: d756bb5f-7407-4930-8a60-6c05bab791a6